fUSD/lending_fUSD_20241207
["ID","MTS","AMOUNT","RATE_DAILY","PERIOD"]
[344588968,1733583049271,-150.0,0.00014915,2]
[344588969,1733583049281,-150.0,0.00014925,2]
[344588970,1733583049290,-150.0,0.00014929,2]
[344588971,1733583049301,-150.0,0.00014941,2]
[344588972,1733583049311,-150.0,0.00014963,2]
[344588973,1733583049321,-150.0,0.00014965,2]
[344588974,1733583049331,-150.0,0.00014985,2]
[344588975,1733583049341,-150.0,0.00014989,2]
[344588976,1733583049351,-150.0,0.00014993,2]
[344588977,1733583049361,-150.0,0.00015044,2]
[344588978,1733583049370,-150.0,0.0001506,2]
[344588979,1733583049380,-500.0,0.00015068,2]
[344588980,1733583049389,-500.0,0.00015068,2]
[344588981,1733583049401,-500.0,0.00015073,2]
[344588982,1733583049411,-150.0,0.00015073,2]
[344588983,1733583049420,-150.0,0.00015073,2]
[344588984,1733583049430,-150.0,0.00015079,2]
[344588985,1733583049442,-150.0,0.00015091,2]
[344588986,1733583049452,-208.8771516,0.0001512,2]
[344588987,1733583049462,-500.0,0.0001513,2]
[344588988,1733583049472,-500.0,0.00015131,2]
[344588989,1733583049483,-500.0,0.00015131,2]
[344588990,1733583049493,-500.0,0.00015131,2]
[344588991,1733583049503,-500.0,0.00015131,2]
[344588992,1733583049512,-500.0,0.00015131,2]
[344588993,1733583049524,-500.0,0.00015131,2]
[344588994,1733583049534,-500.0,0.00015131,2]
[344588995,1733583049544,-392.3228484,0.00015132,4]
[344588996,1733583049568,-500.0,0.00015131,2]
[344588997,1733583049578,-500.0,0.00015131,2]
[344588998,1733583049587,-28923.84295557,0.00015132,4]
[344588999,1733583049599,-522.382554,0.00015132,4]
[344589000,1733583049611,-4654.80581678,0.00015132,4]
[344589001,1733583049623,-1760.00000008,0.00015132,4]
[344589002,1733583049634,-1003.2775477,0.00015132,4]
[344589003,1733583049648,-431168.39281456,0.00015132,4]
[344589004,1733583049659,-964.97144,0.00015132,4]
[344589005,1733583049675,-4311.534494,0.00015132,4]
[344589006,1733583049687,-510.00939672,0.00015132,4]
[344589026,1733584232079,-159.0,0.00012067,2]
[344589027,1733584232088,-278.0651737,0.00013,2]
[344589028,1733584232128,-171.9348263,0.00013,2]
[344589029,1733584232138,-150.07,0.00013908,2]
[344589030,1733584232147,-250.0,0.00013978,2]
[344589031,1733584232156,-171.15,0.00013986,2]
[344589032,1733584232165,-252.32366022,0.00013986,2]
[344589033,1733584232384,-747.67633978,0.00013986,2]
[344589034,1733584232394,-256.08,0.00013989,2]
[344589035,1733584232403,-150.0,0.00013998,2]
[344589036,1733584232413,-158.8,0.00014005,2]
[344589037,1733584232423,-500.0,0.0001402,2]
[344589038,1733584232432,-296.07,0.00014088,2]
[344589039,1733584232441,-159.0,0.00014331,2]
[344589040,1733584232450,-291.228,0.0001437,2]
[344589041,1733584232460,-4863.09,0.00014397,2]
[344589042,1733584232469,-256.08,0.00014507,2]
[344589043,1733584232478,-150.0,0.00014858,2]
[344589044,1733584232488,-150.0,0.00014858,2]
[344589045,1733584232497,-150.0,0.00014861,2]
[344589046,1733584232506,-150.0,0.00014862,2]
[344589047,1733584232515,-150.0,0.00014862,2]
[344589048,1733584232525,-150.0,0.00014865,2]
[344589050,1733584232534,-115.84302746,0.00014867,2]
[344589056,1733584232727,-34.15697254,0.00014867,2]
[344589057,1733584232737,-150.0,0.00014874,2]
[344589058,1733584232746,-150.0,0.00014874,2]
[344589059,1733584232754,-150.0,0.00014874,2]
[344589060,1733584232763,-150.0,0.00014877,2]
[344589061,1733584232772,-150.0,0.00014878,2]
[344589062,1733584232781,-150.0,0.00014885,2]
[344589063,1733584232790,-150.0,0.00014886,2]
[344589064,1733584232799,-150.0,0.00014886,2]
[344589065,1733584232808,-150.0,0.00014886,2]
[344589066,1733584232817,-150.0,0.00014894,2]
[344589067,1733584232826,-150.0,0.00014894,2]
[344589068,1733584232835,-150.0,0.00014896,2]
[344589069,1733584232844,-150.0,0.00014898,2]
[344589070,1733584232854,-150.0,0.00014909,2]
[344589071,1733584232863,-150.0,0.00014909,2]
[344589072,1733584232873,-150.0,0.00014913,2]
[344589073,1733584232882,-150.0,0.00014915,2]
[344589074,1733584232891,-150.0,0.00014917,2]
[344589075,1733584232901,-150.0,0.00014918,2]
[344589076,1733584232910,-150.0,0.0001492,2]
[344589077,1733584232919,-150.0,0.00014926,2]
[344589078,1733584232928,-150.0,0.00014929,2]
[344589079,1733584232937,-150.0,0.00014929,2]
[344589080,1733584232946,-150.0,0.00014933,2]
[344589081,1733584232956,-150.0,0.00014936,2]
[344589082,1733584232965,-150.0,0.00014936,2]
[344589083,1733584232974,-150.0,0.00014938,2]
[344589084,1733584232983,-150.0,0.00014939,2]
[344589085,1733584232992,-150.0,0.0001494,2]
[344589086,1733584233001,-150.0,0.00014943,2]
[344589087,1733584233011,-150.0,0.00014944,2]
[344589088,1733584233021,-150.0,0.00014948,2]
[344589089,1733584233030,-150.0,0.00014948,2]
[344589090,1733584233041,-150.0,0.00014949,2]
[344589091,1733584233050,-150.0,0.00014951,2]
[344589092,1733584233060,-3320.95347047,0.00014955,2]
[344589093,1733584233070,-200.0,0.00014956,2]
[344589094,1733584233079,-150.0,0.00014957,2]
[344589095,1733584233089,-150.0,0.00014957,2]
[344589096,1733584233098,-150.0,0.00014958,2]
[344589097,1733584233107,-1868.03632714,0.00014959,2]
[344589098,1733584233117,-150.0,0.00014959,2]
[344589099,1733584233129,-3320.95347047,0.00014963,2]
[344589100,1733584233142,-1868.03632714,0.00014964,2]
[344589101,1733584233151,-150.0,0.00014964,2]
[344589102,1733584233161,-150.0,0.00014964,2]
[344589103,1733584233170,-438.36343224,0.00014965,2]
[344589104,1733584237871,-150.0,0.00014861,2]
[344589105,1733584237882,-150.0,0.00014867,2]
[344589106,1733584237892,-150.0,0.00014871,2]
[344589107,1733584237903,-150.0,0.00014871,2]
[344589108,1733584237912,-150.0,0.00014874,2]
[344589109,1733584237922,-150.0,0.0001488,2]
[344589110,1733584237931,-150.0,0.00014886,2]
[344589111,1733584237941,-150.0,0.00014896,2]
[344589112,1733584237951,-150.0,0.00014904,2]
[344589113,1733584237961,-150.0,0.00014922,2]
[344589114,1733584237970,-150.0,0.00014934,2]
[344589115,1733584237979,-150.0,0.00014939,2]
[344589116,1733584237988,-150.0,0.00014945,2]
[344589117,1733584237998,-150.0,0.00014962,2]
[344589118,1733584238007,-150.0,0.00014963,2]
[344589119,1733584238017,-150.0,0.00014964,2]
[344589120,1733584238026,-1429.6728949,0.00014965,2]
[344589121,1733584238035,-150.0,0.00014965,2]
[344589122,1733584238045,-2490.71510285,0.00014966,2]
[344589123,1733584238054,-200.0,0.00014968,2]
[344589124,1733584238063,-3320.95347047,0.00014971,2]
[344589125,1733584238073,-150.0,0.00014972,2]
[344589126,1733584238082,-150.0,0.00014972,2]
[344589127,1733584238092,-1868.03632714,0.00014972,2]
[344589128,1733584238102,-200.0,0.00014975,2]
[344589129,1733584238111,-1868.03632714,0.00014975,2]
[344589130,1733584238121,-2490.71510285,0.00014976,2]
[344589131,1733584238132,-150.0,0.00014978,2]
[344589132,1733584238141,-200.0,0.00014981,2]
[344589133,1733584238151,-150.0,0.00014981,2]
[344589134,1733584238161,-150.0,0.00014981,2]
[344589135,1733584238171,-2490.71510285,0.00014983,2]
[344589136,1733584238182,-150.0,0.00014983,2]
[344589137,1733584238192,-200.0,0.00014984,2]
[344589138,1733584238202,-2490.71510285,0.00014985,2]
[344589139,1733584238211,-200.0,0.00014985,2]
[344589140,1733584238220,-150.0,0.00014986,2]
[344589141,1733584238230,-3320.95347047,0.00014988,2]
[344589142,1733584238241,-150.0,0.00014988,2]
[344589143,1733584238252,-150.0,0.0001499,2]
[344589144,1733584238262,-150.0,0.0001499,2]
[344589145,1733584238272,-150.0,0.00014991,2]
[344589146,1733584238282,-3320.95347047,0.00014994,2]
[344589147,1733584238291,-150.0,0.00014994,2]
[344589148,1733584238301,-2490.71510285,0.00014996,2]
[344589149,1733584238311,-150.0,0.00014997,2]
[344589150,1733584238322,-1868.03632714,0.00014997,2]
[344589151,1733584238331,-3320.95347047,0.00014998,2]
[344589152,1733584238342,-2490.71510285,0.00014999,2]
[344589153,1733584238352,-12036.1699147,0.00015,4]
[344589154,1733584238374,-9333.46674382,0.00015,4]
[344589155,1733584238389,-474.34274789,0.00015,4]
[344589156,1733584238398,-500.0,0.00015,2]
[344589157,1733584238407,-150.0,0.00015,2]
[344589158,1733584238416,-4298.0,0.00015,2]
[344589159,1733584238426,-150.0,0.00015001,2]
[344589160,1733584238435,-150.0,0.00015003,2]
[344589161,1733584238445,-150.0,0.00015006,2]
[344589162,1733584238454,-150.0,0.00015007,2]
[344589163,1733584238463,-500.0,0.00015011,2]
[344589164,1733584238472,-150.0,0.00015012,2]
[344589165,1733584238481,-150.0,0.00015013,2]
[344589166,1733584238490,-150.0,0.00015014,2]
[344589167,1733584238500,-150.0,0.00015018,2]
[344589168,1733584238512,-150.0,0.00015018,2]
[344589169,1733584238524,-150.0,0.0001502,2]
[344589170,1733584238533,-150.0,0.0001502,2]
[344589171,1733584238543,-150.0,0.00015021,2]
[344589172,1733584238552,-150.0,0.00015023,2]
[344589173,1733584238561,-150.0,0.00015023,2]
[344589174,1733584238571,-256.08,0.00015024,2]
[344589175,1733584238580,-150.0,0.00015028,2]
[344589176,1733584238589,-150.0,0.0001503,2]
[344589177,1733584238599,-2160.59450711,0.00015031,2]
[344589178,1733584238611,-339.40549289,0.00015031,2]
[344589179,1733584238620,-150.0,0.00015032,2]
[344589180,1733584238630,-150.0,0.00015032,2]
[344589181,1733584238639,-1304.75653341,0.00015032,2]
[344589182,1733584238662,-150.0,0.00014963,2]
[344589183,1733584238671,-1509.41530734,0.00015032,2]
[344589184,1733584238683,-2200.73140222,0.00015032,2]
[344589185,1733584238694,-3046.08,0.00015032,2]
[344589186,1733584238706,-2543.73272293,0.00015032,2]
[344589187,1733584238721,-9414.51625507,0.00015032,2]
[344589188,1733584238732,-37938.53167903,0.00015032,2]
[344589189,1733584238742,-150.0,0.00015033,2]
[344589190,1733584238752,-150.0,0.00015039,2]
[344589191,1733584238762,-150.0,0.00015041,2]
[344589192,1733584238772,-150.0,0.00015042,2]
[344589193,1733584238781,-150.0,0.00015042,2]
[344589194,1733584238791,-150.0,0.0001505,2]
[344589195,1733584238800,-150.0,0.0001505,2]
[344589196,1733584238810,-150.0,0.00015053,2]
[344589197,1733584238819,-150.0,0.00015054,2]
[344589198,1733584238828,-150.0,0.00015056,2]
[344589199,1733584238838,-150.0,0.00015056,2]
[344589200,1733584238848,-150.0,0.00015056,2]
[344589201,1733584238861,-150.0,0.00015057,2]
[344589202,1733584238872,-105.66697097,0.00015058,2]
[344589203,1733584238887,-44.33302903,0.00015058,2]
[344589204,1733584238896,-150.0,0.00015058,2]
[344589205,1733584238907,-150.0,0.0001506,2]
[344589206,1733584238916,-150.0,0.00015063,2]
[344589207,1733584238926,-150.0,0.00015064,2]
[344589208,1733584238935,-861.1,0.00015065,2]
[344589209,1733584238944,-172.48658176,0.00015065,2]
[344589210,1733584238954,-150.0,0.00015067,2]
[344589211,1733584238963,-161.58864977,0.00015068,2]
[344589212,1733584239875,-150.0,0.00014866,2]
[344589213,1733584239886,-150.0,0.00014869,2]
[344589214,1733584239896,-150.0,0.0001487,2]
[344589215,1733584239906,-150.0,0.00014875,2]
[344589217,1733584239915,-150.0,0.00014877,2]
[344589218,1733584239925,-150.0,0.00014888,2]
[344589219,1733584239935,-150.0,0.00014898,2]
[344589220,1733584239945,-150.0,0.00014903,2]
[344589221,1733584239955,-150.0,0.00014912,2]
[344589222,1733584239964,-150.0,0.00014918,2]
[344589223,1733584239974,-150.0,0.00014927,2]
[344589224,1733584239983,-150.0,0.0001493,2]
[344589225,1733584239994,-150.0,0.00014932,2]
[344589226,1733584240003,-150.0,0.0001495,2]
[344589227,1733584240013,-150.0,0.00014958,2]
[344589228,1733584240023,-150.0,0.00014961,2]
[344589229,1733584240032,-150.0,0.00014964,2]
[344589230,1733584240042,-150.0,0.00014964,2]
[344589231,1733584240051,-150.0,0.00014973,2]
[344589232,1733584240061,-150.0,0.00014974,2]
[344589233,1733584240070,-150.0,0.00014989,2]
[344589234,1733584240079,-150.0,0.00014994,2]
[344589235,1733584240088,-150.0,0.00014997,2]
[344589236,1733584240098,-150.0,0.00015,2]
[344589237,1733584240108,-150.0,0.00015003,2]
[344589238,1733584240117,-150.0,0.00015011,2]
[344589239,1733584240126,-150.0,0.00015017,2]
[344589240,1733584240137,-150.0,0.0001502,2]
[344589241,1733584240147,-150.0,0.00015028,2]
[344589242,1733584240156,-150.0,0.00015029,2]
[344589243,1733584240165,-150.0,0.00015041,2]
[344589247,1733584240334,-150.0,0.00015049,2]
[344589248,1733584240344,-150.0,0.00015051,2]
[344589249,1733584240353,-150.0,0.00015058,2]
[344589250,1733584240362,-150.0,0.00015061,2]
[344589251,1733584240371,-338.41135023,0.00015068,2]
[344589252,1733584240383,-500.0,0.00015068,2]
[344589253,1733584240393,-500.0,0.00015068,2]
[344589254,1733584240402,-500.0,0.00015068,2]
[344589255,1733584240412,-500.0,0.00015068,2]
[344589256,1733584240422,-500.0,0.00015068,2]
[344589257,1733584240432,-500.0,0.00015068,2]
[344589258,1733584240441,-500.0,0.00015068,2]
[344589259,1733584240451,-500.0,0.00015068,2]
[344589260,1733584240460,-500.0,0.00015068,2]
[344589261,1733584240469,-500.0,0.00015068,2]
[344589262,1733584240478,-500.0,0.00015068,2]
[344589263,1733584240488,-500.0,0.00015068,2]
[344589264,1733584240497,-500.0,0.00015068,2]
[344589265,1733584240506,-500.0,0.00015068,2]
[344589266,1733584240515,-500.0,0.00015068,2]
[344589267,1733584240525,-500.0,0.00015068,2]
[344589268,1733584240534,-500.0,0.00015068,2]
[344589269,1733584240543,-500.0,0.00015068,2]
[344589270,1733584240552,-500.0,0.00015068,2]
[344589271,1733584240562,-500.0,0.00015068,2]
[344589272,1733584240571,-500.0,0.00015068,2]
[344589273,1733584240580,-500.0,0.00015068,2]
[344589274,1733584240590,-150.0,0.00015068,2]
[344589275,1733584240599,-150.0,0.00015068,2]
[344589276,1733584240608,-622.4,0.00015068,2]
[344589277,1733584240617,-270.77505477,0.00015068,2]
[344589278,1733584240647,-150.0,0.00014859,2]
[344589279,1733584240657,-150.0,0.00014978,2]
[344589280,1733584240666,-150.0,0.00014994,2]
[344589281,1733584240675,-229.22494523,0.00015068,2]
[344589282,1733584240693,-500.0,0.00015068,2]
[344589283,1733584240702,-500.0,0.00015068,2]
[344589284,1733584240712,-500.0,0.00015068,2]
[344589285,1733584240721,-500.0,0.00015068,2]
[344589286,1733584240730,-500.0,0.00015068,2]
[344589287,1733584240739,-500.0,0.00015068,2]
[344589288,1733584240749,-500.0,0.00015068,2]
[344589289,1733584240758,-500.0,0.00015068,2]
[344589290,1733584240770,-500.0,0.00015068,2]
[344589291,1733584240779,-500.0,0.00015068,2]
[344589292,1733584240788,-263.13366042,0.00015068,2]
[344589293,1733584240797,-598.06,0.00015068,2]
[344589294,1733584240807,-500.0,0.00015068,2]
[344589295,1733584240816,-500.0,0.00015068,2]
[344589296,1733584240829,-500.0,0.00015068,2]
[344589297,1733584240839,-500.0,0.00015068,2]
[344589298,1733584240847,-5000.0,0.00015068,2]
[344589299,1733584240858,-500.0,0.00015068,2]
[344589300,1733584240869,-500.0,0.00015068,2]
[344589301,1733584240879,-500.0,0.00015068,2]
[344589302,1733584240888,-500.0,0.00015068,2]
[344589303,1733584240898,-500.0,0.00015068,2]
[344589304,1733584240907,-500.0,0.00015068,2]
[344589305,1733584240916,-500.0,0.00015068,2]
[344589306,1733584240925,-500.0,0.00015068,2]
[344589307,1733584240935,-500.0,0.00015068,2]
[344589308,1733584240945,-456.67,0.00015068,2]
[344589309,1733584240954,-500.0,0.00015068,2]
[344589310,1733584240964,-597.38,0.00015068,2]
[344589311,1733584240973,-500.0,0.00015068,2]
[344589312,1733584240982,-500.0,0.00015068,2]
[344589313,1733584240991,-510.84338399,0.00015068,2]
[344589314,1733584241001,-500.0,0.00015068,2]
[344589315,1733584241010,-500.0,0.00015068,2]
[344589316,1733584241019,-500.0,0.00015068,2]
[344589317,1733584241029,-500.0,0.00015068,2]
[344589318,1733584241038,-500.0,0.00015068,2]
[344589319,1733584241047,-500.0,0.00015068,2]
[344589320,1733584241056,-500.0,0.00015068,2]
[344589321,1733584241065,-500.0,0.00015068,2]
[344589322,1733584241074,-500.0,0.00015068,2]
[344589323,1733584241083,-642.37,0.00015068,2]
[344589324,1733584241092,-500.0,0.00015068,2]
[344589325,1733584241101,-500.0,0.00015068,2]
[344589326,1733584241110,-500.0,0.00015068,2]
[344589327,1733584241120,-500.0,0.00015068,2]
[344589328,1733584241131,-500.0,0.00015068,2]
[344589329,1733584241141,-282.38999991,0.00015068,2]
[344589330,1733584241150,-500.0,0.00015068,2]
[344589331,1733584241159,-524.9,0.00015068,2]
[344589332,1733584241168,-500.0,0.00015068,2]
[344589333,1733584241177,-500.0,0.00015068,2]
[344589334,1733584241186,-500.0,0.00015068,2]
[344589335,1733584241195,-150.0,0.0001507,2]
[344589336,1733584241204,-150.0,0.0001507,2]
[344589337,1733584241214,-150.0,0.00015075,2]
[344589338,1733584241223,-150.0,0.00015076,2]
[344589339,1733584241232,-150.0,0.00015076,2]
[344589340,1733584241242,-150.0,0.00015076,2]
[344589341,1733584241253,-150.0,0.00015082,2]
[344589342,1733584241262,-150.0,0.00015082,2]
[344589343,1733584241272,-150.0,0.00015083,2]
[344589344,1733584241281,-150.0,0.00015083,2]
[344589345,1733584241291,-150.0,0.00015086,2]
[344589346,1733584241300,-150.0,0.00015091,2]
[344589347,1733584241309,-150.0,0.00015092,2]
[344589348,1733584241319,-150.0,0.00015093,2]
[344589349,1733584241328,-150.0,0.00015096,2]
[344589350,1733584241337,-150.0,0.00015098,2]
[344589351,1733584241346,-3049.19166695,0.000151,2]
[344589352,1733584241355,-150.0,0.00015102,2]
[344589353,1733584241365,-150.0,0.00015102,2]
[344589354,1733584241375,-150.0,0.00015103,2]
[344589355,1733584241385,-150.0,0.00015103,2]
[344589356,1733584241394,-150.0,0.00015104,2]
[344589357,1733584241403,-150.0,0.00015107,2]
[344589358,1733584241412,-630.0,0.00015111,2]
[344589359,1733584241421,-794.017,0.00015111,2]
[344589360,1733584241430,-150.0,0.00015111,2]
[344589361,1733584241439,-150.0,0.00015111,2]
[344589362,1733584241448,-1365.845,0.00015111,2]
[344589363,1733584241458,-150.0,0.00015113,2]
[344589364,1733584241467,-150.0,0.00015113,2]
[344589365,1733584241477,-150.0,0.00015115,2]
[344589366,1733584241487,-150.0,0.00015119,2]
[344589367,1733584241497,-150.0,0.00015122,2]
[344589368,1733584241506,-150.0,0.00015123,2]
[344589369,1733584241515,-150.0,0.00015125,2]
[344589370,1733584241524,-150.0,0.00015126,2]
[344589371,1733584241534,-150.0,0.00015126,2]
[344589372,1733584241544,-150.0,0.00015127,2]
[344589373,1733584241554,-150.0,0.00015129,2]
[344589374,1733584241563,-4999.96000101,0.00015129,2]
[344589375,1733584241573,-500.0,0.00015129,2]
[344589376,1733584241582,-500.0,0.00015129,2]
[344589377,1733584241591,-500.0,0.00015129,2]
[344589378,1733584241601,-500.0,0.00015129,2]
[344589379,1733584241611,-500.0,0.00015129,2]
[344589380,1733584241620,-500.0,0.00015129,2]
[344589381,1733584241630,-500.0,0.00015129,2]
[344589382,1733584241639,-500.0,0.00015129,2]
[344589383,1733584241648,-500.0,0.00015129,2]
[344589384,1733584241658,-500.0,0.00015129,2]
[344589385,1733584241667,-500.0,0.00015129,2]
[344589386,1733584241676,-500.0,0.00015129,2]
[344589387,1733584241685,-500.0,0.00015129,2]
[344589388,1733584241694,-500.0,0.00015129,2]
[344589389,1733584241705,-500.0,0.00015129,2]
[344589390,1733584241714,-500.0,0.00015129,2]
[344589391,1733584241724,-500.0,0.00015129,2]
[344589392,1733584241732,-500.0,0.00015129,2]
[344589393,1733584241741,-500.0,0.00015129,2]
[344589394,1733584241750,-474.038743,0.00015129,2]
[344589395,1733584241759,-500.0,0.00015129,2]
[344589396,1733584241768,-802.03,0.00015129,2]
[344589397,1733584241777,-500.0,0.0001513,2]
[344589398,1733584241786,-500.0,0.0001513,2]
[344589399,1733584241795,-500.0,0.0001513,2]
[344589400,1733584241805,-500.0,0.0001513,2]
[344589401,1733584241814,-500.0,0.0001513,2]
[344589402,1733584241823,-500.0,0.0001513,2]
[344589403,1733584241832,-500.0,0.0001513,2]
[344589404,1733584241842,-500.0,0.0001513,2]
[344589405,1733584241852,-500.0,0.0001513,2]
[344589406,1733584241864,-500.0,0.0001513,2]
[344589407,1733584241873,-502.01317877,0.0001513,2]
[344589408,1733584241883,-150.0,0.0001513,2]
[344589409,1733584241893,-500.0,0.0001513,2]
[344589410,1733584241904,-504.71411882,0.0001513,2]
[344589411,1733584241913,-500.0,0.0001513,2]
[344589412,1733584241922,-500.0,0.0001513,2]
[344589413,1733584241933,-500.0,0.0001513,2]
[344589414,1733584241942,-500.0,0.0001513,2]
[344589415,1733584241951,-500.0,0.0001513,2]
[344589416,1733584241961,-500.0,0.0001513,2]
[344589417,1733584241971,-214.87359989,0.0001513,2]
[344589418,1733584241981,-500.0,0.0001513,2]
[344589419,1733584241991,-500.0,0.0001513,2]
[344589420,1733584242000,-271.427387,0.0001513,2]
[344589421,1733584242009,-276.23238668,0.0001513,2]
[344589422,1733584242019,-575.99133958,0.0001513,2]
[344589423,1733584242028,-591.28560257,0.0001513,2]
[344589424,1733584242037,-500.0,0.0001513,2]
[344589425,1733584242047,-150.0,0.0001513,2]
[344589426,1733584242056,-500.0,0.0001513,2]
[344589427,1733584242066,-500.0,0.0001513,2]
[344589428,1733584242075,-205.45406654,0.0001513,2]
[344589429,1733584242084,-231.61110716,0.0001513,2]
[344589430,1733584242094,-500.0,0.0001513,2]
[344589431,1733584242103,-500.0,0.0001513,2]
[344589432,1733584242113,-500.0,0.0001513,2]
[344589433,1733584242122,-500.0,0.0001513,2]
[344589434,1733584242132,-500.0,0.0001513,2]
[344589435,1733584242141,-523.37449128,0.0001513,2]
[344589436,1733584242150,-500.0,0.0001513,2]
[344589437,1733584242159,-516.34418098,0.0001513,2]
[344589438,1733584242168,-519.40837054,0.0001513,2]
[344589439,1733584242177,-500.0,0.0001513,2]
[344589440,1733584242186,-500.0,0.0001513,2]
[344589441,1733584242195,-500.0,0.0001513,2]
[344589442,1733584242205,-500.0,0.0001513,2]
[344589443,1733584242214,-500.0,0.0001513,2]
[344589444,1733584242223,-1653.79,0.0001513,2]
[344589445,1733584242233,-500.0,0.0001513,2]
[344589446,1733584242242,-500.0,0.0001513,2]
[344589447,1733584242251,-419.86498495,0.0001513,2]
[344589448,1733584242260,-500.0,0.0001513,2]
[344589449,1733584242270,-500.0,0.0001513,2]
[344589450,1733584242279,-500.0,0.0001513,2]
[344589451,1733584242288,-500.0,0.0001513,2]
[344589452,1733584242297,-500.0,0.0001513,2]
[344589453,1733584242306,-174.64638985,0.0001513,2]
[344589454,1733584242316,-500.0,0.0001513,2]
[344589455,1733584242326,-500.0,0.0001513,2]
[344589456,1733584242335,-500.0,0.0001513,2]
[344589457,1733584242345,-500.0,0.0001513,2]
[344589458,1733584242355,-500.0,0.0001513,2]
[344589459,1733584242364,-307.7,0.0001513,2]
[344589460,1733584242374,-500.0,0.0001513,2]
[344589461,1733584242384,-500.0,0.0001513,2]
[344589462,1733584242395,-500.0,0.0001513,2]
[344589463,1733584242404,-500.0,0.0001513,2]
[344589464,1733584242413,-500.0,0.0001513,2]
[344589465,1733584242423,-625.42224062,0.0001513,2]
[344589466,1733584242433,-500.0,0.0001513,2]
[344589467,1733584242442,-401.51967379,0.0001513,2]
[344589468,1733584242451,-518.48346165,0.0001513,2]
[344589469,1733584242460,-500.0,0.0001513,2]
[344589470,1733584242470,-500.0,0.0001513,2]
[344589471,1733584242479,-500.0,0.0001513,2]
[344589472,1733584242488,-500.0,0.0001513,2]
[344589473,1733584242498,-858.46,0.0001513,2]
[344589474,1733584242507,-593.18243805,0.0001513,2]
[344589475,1733584242516,-596.0,0.0001513,2]
[344589476,1733584242525,-251.26903544,0.0001513,2]
[344589477,1733584242535,-500.0,0.0001513,2]
[344589478,1733584242544,-607.06,0.0001513,2]
[344589479,1733584242553,-500.0,0.0001513,2]
[344589480,1733584242563,-500.0,0.0001513,2]
[344589481,1733584242572,-466.72351438,0.0001513,2]
[344589482,1733584242581,-500.0,0.0001513,2]
[344589483,1733584242590,-500.0,0.0001513,2]
[344589484,1733584242600,-1582.52,0.0001513,2]
[344589485,1733584242610,-500.0,0.0001513,2]
[344589486,1733584242619,-500.0,0.0001513,2]
[344589487,1733584242628,-1139.27,0.0001513,2]
[344589488,1733584242639,-503.47,0.0001513,2]
[344589489,1733584242648,-500.0,0.0001513,2]
[344589490,1733584242658,-500.0,0.0001513,2]
[344589491,1733584242667,-542.93885398,0.0001513,2]
[344589492,1733584242676,-500.0,0.0001513,2]
[344589493,1733584242686,-500.0,0.0001513,2]
[344589494,1733584242695,-570.28,0.0001513,2]
[344589495,1733584242705,-500.0,0.0001513,2]
[344589496,1733584242714,-766.19,0.0001513,2]